bitfinex/quotes_SOLUSD_20220116
["timestamp","ask_amount","ask_price","bid_price","bid_amount"]
[1642334201055,6.87475741,148.39,148.3,24.2925]
[1642334201254,1.70077588,148.41,148.3,24.2925]
[1642334201651,1.70077588,148.41,148.3,24.5425]
[1642334202064,1.70077588,148.41,148.3,24.2925]
[1642334202253,7.4257747,148.4,148.3,24.2925]
[1642334202456,7.4257747,148.4,148.3,24.5425]
[1642334202856,7.4257747,148.4,148.3,24.2925]
[1642334203461,7.4257747,148.4,148.3,24.5425]
[1642334203863,0.26,148.39,148.3,24.5425]
[1642334205466,0.26,148.39,148.3,24.2925]
[1642334205668,0.26,148.39,148.3,24.5425]
[1642334206300,7.4257747,148.4,148.3,24.5425]
[1642334206698,7.4257747,148.4,148.3,24.2925]
[1642334207199,1.70077588,148.39,148.3,24.0325]
[1642334208403,11.81287588,148.39,148.3,24.0325]
[1642334210006,0.26,148.38,148.3,24.0325]
[1642334210804,0.26,148.38,148.3,23.5325]
[1642334211307,11.81287588,148.39,148.31,0.26]
[1642334212005,11.81287588,148.39,148.3,23.5325]
[1642334213007,0.26,148.38,148.3,23.5325]
[1642334216810,12.07357588,148.38,148.3,23.5325]
[1642334217609,1.11763334,148.37,148.3,23.5325]
[1642334219512,11.23113334,148.37,148.3,23.5325]
[1642334219810,0.26,148.36,148.3,23.5325]
[1642334221516,0.26,148.36,148.3,59.35571084]
[1642334222716,24.9445,148.39,148.3,59.35571084]
[1642334222917,24.9445,148.39,148.31,0.26]
[1642334223816,8.72157144,148.38,148.3,1.91816747]
[1642334224219,1.70077588,148.37,148.3,1.91816747]
[1642334225118,1.70077588,148.37,148.31,48.11439763]
[1642334225416,10.1135,148.37,148.27,24.43996747]
[1642334226017,11.81427588,148.37,148.27,24.43996747]
[1642334226218,0.26,148.36,148.27,24.43996747]
[1642334226419,0.26,148.36,148.28,47.27943451]
[1642334227220,0.26,148.36,148.29,0.26]
[1642334228422,0.26,148.36,148.29,25.2186]
[1642334233148,24.9445,148.39,148.29,25.2186]
[1642334233348,24.9445,148.39,148.29,25.4686]
[1642334233551,1.81783178,148.4,148.29,25.4686]
[1642334234152,1.23024126,148.39,148.29,25.4686]
[1642334234454,1.81783178,148.41,148.29,27.38676747]
[1642334234652,1.81783178,148.41,148.29,33.38676747]
[1642334234851,1.81783178,148.41,148.29,27.38676747]
[1642334235251,9.00600352,148.41,148.29,94.77676747]
[1642334235853,0.26,148.4,148.29,27.38676747]
[1642334236455,0.26,148.4,148.29,33.38676747]
[1642334237057,0.26,148.4,148.3,1.91816747]
[1642334237256,0.26,148.4,148.31,38.94232153]
[1642334237454,0.26,148.4,148.32,24.4777]
[1642334241761,1.96077588,148.4,148.32,24.4777]
[1642334241961,1.96077588,148.4,148.31,38.94232153]
[1642334242860,1.96077588,148.4,148.29,1.91816747]
[1642334243062,35.71097588,148.4,148.3,0.26]
[1642334243663,35.71097588,148.4,148.29,1.91816747]
[1642334244363,35.71097588,148.4,148.28,74.50227468]
[1642334244567,8.40711569,148.39,148.28,74.50227468]
[1642334244762,10.114,148.36,148.28,74.50227468]
[1642334244964,7.18817174,148.35,148.28,74.50227468]
[1642334245365,7.18817174,148.35,148.28,72.58410721]
[1642334245565,8.88894762,148.35,148.28,72.58410721]
[1642334248169,8.88894762,148.35,148.28,23.0465]
[1642334248375,0.26,148.34,148.28,23.0465]
[1642334252109,10.3755,148.34,148.28,23.0465]
[1642334257710,10.3755,148.34,148.25,35.57914881]
[1642334258109,10.3755,148.34,148.23,1.91816747]
[1642334258315,26.28077588,148.33,148.23,1.91816747]
[1642334258509,10.1176,148.31,148.23,1.91816747]
[1642334259310,1.3552363,148.3,148.22,42.59088706]
[1642334260011,0.26,148.29,148.23,23.8769]
[1642334262313,10.1176,148.31,148.23,23.8769]
[1642334263819,34.3168,148.31,148.23,23.8769]
[1642334264818,36.01757588,148.31,148.23,23.8769]
[1642334265818,0.26,148.3,148.23,23.8769]
[1642334268122,1.96077588,148.3,148.2,23.849]
[1642334268323,12.07897588,148.3,148.2,23.849]
[1642334269024,23.454,148.29,148.21,24.2729]
[1642334269322,25.15477588,148.29,148.21,64.17016944]
[1642334269552,0.26,148.28,148.21,64.17016944]
[1642334270528,10.3795,148.28,148.21,64.17016944]
[1642334271331,10.3795,148.28,148.27,3.931048]
[1642334274633,12.08027588,148.28,148.27,3.931048]
[1642334276239,12.08027588,148.28,148.27,4.8e-05]
[1642334276837,10.1229,148.24,148.16,1.91816747]
[1642334277359,6.81786827,148.22,148.16,1.91816747]
[1642334277663,8.51864415,148.22,148.16,1.91816747]
[1642334277862,8.51864415,148.22,148.15,24.2654]
[1642334279964,8.51864415,148.22,148.16,0.02]
[1642334280165,8.51864415,148.22,148.16,0.04]
[1642334280363,18.64234415,148.22,148.16,0.04]
[1642334280966,0.26,148.21,148.16,0.04]
[1642334281372,1.96077588,148.21,148.16,0.04]
[1642334282567,10.1248,148.2,148.16,0.04]
[1642334284670,0.26,148.19,148.16,0.04]
[1642334286074,1.70077588,148.21,148.16,0.04]
[1642334286275,0.26,148.2,148.16,0.04]
[1642334287073,10.1237,148.22,148.16,0.04]
[1642334287275,0.26,148.21,148.16,0.04]
[1642334290778,10.3844,148.21,148.16,0.04]
[1642334290978,10.1244,148.21,148.16,0.04]
[1642334291882,0.26,148.2,148.16,0.04]
[1642334294488,10.1231,148.23,148.16,0.04]
[1642334295487,11.82387588,148.23,148.16,0.04]
[1642334295885,24.1823,148.22,148.16,0.04]
[1642334296086,34.3061,148.22,148.16,0.04]
[1642334298189,0.26,148.21,148.16,0.04]
[1642334299988,10.3844,148.21,148.16,0.04]
[1642334300589,1.70077588,148.23,148.16,0.04]
[1642334300790,1.70077588,148.26,148.16,0.04]
[1642334300990,1.70077588,148.25,148.16,0.04]
[1642334301191,51.13354485,148.28,148.16,0.04]
[1642334301395,3.51860766,148.27,148.16,0.04]
[1642334301591,6.23857935,148.26,148.16,0.04]
[1642334302092,1.96077588,148.25,148.16,0.04]
[1642334302292,0.26,148.25,148.16,0.04]
[1642334302492,12.08247588,148.25,148.16,0.04]
[1642334303519,32.7663,148.24,148.16,0.04]
[1642334304321,34.46707588,148.24,148.16,0.04]
[1642334305223,22.6438,148.24,148.16,0.04]
[1642334305420,1.81783178,148.25,148.16,0.04]
[1642334305822,18.17751113,148.26,148.16,0.04]
[1642334306425,0.26,148.25,148.16,0.04]
[1642334306625,24.6562,148.25,148.16,0.04]
[1642334307425,34.7779,148.25,148.16,0.04]
[1642334307623,36.59573178,148.25,148.16,0.04]
[1642334307825,1.70077588,148.24,148.16,0.04]
[1642334308824,3.51860766,148.24,148.16,0.04]
[1642334309226,1.70077588,148.23,148.16,0.04]
[1642334309423,11.94023178,148.24,148.16,0.04]
[1642334309624,1.81783178,148.24,148.16,0.04]
[1642334310027,0.26,148.23,148.16,0.04]
[1642334311127,10.1224,148.24,148.16,0.04]
[1642334311425,1.81783178,148.24,148.16,0.04]
[1642334312024,24.3962,148.25,148.16,0.04]
[1642334312825,0.26,148.24,148.16,0.04]
[1642334314828,19.87818701,148.26,148.16,0.04]
[1642334315231,24.7418,148.25,148.16,0.04]
[1642334315830,0.26,148.24,148.16,0.04]
[1642334317232,1.96077588,148.24,148.16,0.04]
[1642334327246,1.70077588,148.24,148.16,0.04]
[1642334330875,0.26,148.23,148.16,7.759]
[1642334331075,26.55963178,148.25,148.17,22.5218]
[1642334331275,26.55963178,148.25,148.17,22.7818]
[1642334331475,26.55963178,148.25,148.17,23.0318]
[1642334331674,1.81783178,148.25,148.17,22.7818]
[1642334331876,6.91973293,148.25,148.18,50.44166939]
[1642334333577,1.81783178,148.26,148.18,50.44166939]
[1642334333778,1.81783178,148.26,148.19,24.9606]
[1642334333977,0.26,148.25,148.19,24.9606]
[1642334335378,6.25197766,148.25,148.19,24.9606]
[1642334342785,6.25197766,148.25,148.15,1.91816747]
[1642334342786,7.95275354,148.25,148.15,1.91816747]
[1642334343188,7.95275354,148.25,148.14,25.76806747]
[1642334343690,23.9686,148.24,148.15,38.71170171]
[1642334343888,34.0912,148.24,148.15,38.71170171]
[1642334344088,1.70077588,148.23,148.15,38.71170171]
[1642334344289,3.51860766,148.23,148.16,23.9857]
[1642334345288,1.70077588,148.23,148.16,23.9857]
[1642334345689,1.70077588,148.23,148.16,24.0057]
[1642334346089,1.70077588,148.23,148.16,24.0257]
[1642334347691,0.26,148.22,148.16,24.0257]
[1642334353007,0.26,148.22,148.16,23.0257]
[1642334355508,1.70077588,148.23,148.16,23.0257]
[1642334355707,25.78643178,148.24,148.16,28.7427]
[1642334356732,1.81783178,148.24,148.16,28.7427]
[1642334356937,0.26,148.23,148.16,28.7427]
[1642334357136,0.26,148.23,148.16,28.4927]
[1642334357336,7.65117516,148.25,148.16,28.7427]
[1642334357534,0.26,148.24,148.16,28.7427]
[1642334357935,0.26,148.24,148.16,28.4927]
[1642334358136,0.26,148.24,148.16,23.2757]
[1642334363947,1.96077588,148.24,148.16,23.0257]
[1642334364949,25.81157588,148.24,148.16,23.0257]
[1642334365247,27.62940766,148.24,148.16,23.0257]
[1642334365446,37.75170766,148.24,148.16,23.0257]
[1642334377363,1.81783178,148.23,148.16,23.0257]
[1642334378768,35.67387588,148.24,148.16,23.0257]
[1642334378769,37.49170766,148.24,148.16,23.0257]
[1642334380070,0.26,148.23,148.16,23.0257]
[1642334381269,2.07783178,148.23,148.16,23.0257]
[1642334383296,0.26,148.23,148.16,23.0257]
[1642334385295,2.07783178,148.23,148.16,23.0257]
[1642334387501,1.81783178,148.22,148.16,23.0257]
[1642334391305,0.26,148.21,148.16,23.0257]
[1642334396407,1.81783178,148.23,148.16,23.0257]
[1642334397814,1.81783178,148.22,148.16,23.0257]
[1642334399912,0.26,148.21,148.16,23.0257]
[1642334401642,2.07783178,148.21,148.16,23.0257]
[1642334401842,0.89223288,148.2,148.16,23.0257]
[1642334402744,2.07783178,148.21,148.16,23.0257]
[1642334403144,0.26,148.21,148.16,23.0257]
[1642334403547,1.81783178,148.22,148.16,23.0257]
[1642334403745,10.03070599,148.22,148.16,23.2757]
[1642334403948,1.81783178,148.22,148.17,0.26]
[1642334405047,1.81783178,148.24,148.17,0.26]
[1642334405646,1.81783178,148.24,148.17,8.294]
[1642334405847,3.57765359,148.27,148.18,23.6348]
[1642334406047,3.57765359,148.27,148.18,91.1148]
[1642334406247,3.57765359,148.27,148.19,0.26]
[1642334406648,3.57765359,148.27,148.19,37.74525831]
[1642334406950,6.88902701,148.28,148.19,37.74525831]
[1642334407148,6.88902701,148.28,148.19,37.48525831]
[1642334407348,8.58980289,148.28,148.19,37.48525831]
[1642334407748,8.58980289,148.28,148.18,23.6348]
[1642334408151,0.26,148.27,148.11,39.31664649]
[1642334408350,23.3672,148.27,148.12,67.48]
[1642334408753,23.3672,148.27,148.13,44.6376454]
[1642334408952,25.06797588,148.27,148.13,50.8876454]
[1642334409353,1.61435585,148.2,148.13,50.8876454]
[1642334409553,3.2287117,148.2,148.13,50.8876454]
[1642334410465,3.2287117,148.2,148.14,67.48]
[1642334410862,1.17e-05,148.2,148.15,109.0]
[1642334411062,1.17e-05,148.2,148.15,115.075]
[1642334411263,1.17e-05,148.2,148.15,121.325]
[1642334411563,1.17e-05,148.2,148.16,0.26]
[1642334414569,1.70077588,148.26,148.16,0.26]
[1642334414868,1.70077588,148.26,148.16,45.12149986]
[1642334415068,5.27842947,148.28,148.16,45.12149986]
[1642334415271,5.27842947,148.28,148.16,51.37149986]
[1642334415572,1.70077588,148.28,148.17,67.48]
[1642334416068,1.70077588,148.28,148.18,0.26]
[1642334418670,1.70077588,148.28,148.18,24.8927]
[1642334418870,1.70077588,148.28,148.18,31.1427]
[1642334419169,1.70077588,148.28,148.18,98.6227]
[1642334419369,1.70077588,148.28,148.18,30.8827]
[1642334419993,0.26,148.27,148.18,30.8827]
[1642334420394,1.96077588,148.27,148.18,30.8827]
[1642334420798,1.96077588,148.27,148.19,0.26]
[1642334422599,1.96077588,148.27,148.18,30.6327]
[1642334424102,1.96077588,148.27,148.19,0.26]
[1642334424301,1.96077588,148.27,148.18,30.6327]
[1642334426100,1.96077588,148.27,148.18,24.6327]
[1642334426301,1.96077588,148.27,148.18,30.6327]
[1642334427200,1.96077588,148.27,148.18,24.6327]
[1642334427400,1.96077588,148.27,148.18,30.6327]
[1642334429302,1.96077588,148.27,148.18,24.6327]
[1642334429707,1.96077588,148.27,148.18,30.6327]
[1642334432421,12.08107588,148.27,148.18,30.6327]
[1642334433121,1.94304464,148.25,148.18,30.6327]
[1642334433522,1.94304464,148.25,148.18,24.6327]
[1642334433719,1.94304464,148.25,148.18,30.6327]
[1642334434619,1.94304464,148.25,148.18,24.6327]
[1642334434820,1.94304464,148.25,148.18,30.6327]
[1642334435422,24.6826,148.26,148.18,30.6327]
[1642334435822,0.26,148.25,148.18,30.6327]
[1642334436422,7.09445414,148.25,148.18,30.6327]
[1642334437523,0.26,148.25,148.18,30.6327]
[1642334437925,0.26,148.25,148.18,30.8827]
[1642334438749,0.26,148.25,148.18,24.8827]
[1642334438951,0.26,148.25,148.18,30.8827]
[1642334439148,24.6826,148.26,148.18,30.8827]
[1642334439950,24.6826,148.26,148.18,24.8827]
[1642334440150,24.6826,148.26,148.18,30.8827]
[1642334440552,24.6826,148.26,148.18,30.6327]
[1642334440752,24.6826,148.26,148.18,24.6327]
[1642334440954,1.70077588,148.25,148.18,24.6327]
[1642334441453,1.70077588,148.25,148.12,3.8306435]
[1642334441653,1.70077588,148.25,148.13,64.11985927]
[1642334441854,1.70077588,148.25,148.13,70.11985927]
[1642334442558,11.82257588,148.25,148.13,70.11985927]
[1642334442859,1.96077588,148.24,148.13,70.11985927]
[1642334443057,2.0172618,148.23,148.13,70.11985927]
[1642334443257,2.0172618,148.23,148.13,70.36985927]
[1642334446561,0.26,148.22,148.13,70.36985927]
[1642334446962,0.26,148.22,148.13,70.38985927]
[1642334447361,0.26,148.22,148.13,70.40985927]
[1642334447562,0.26,148.22,148.13,70.15985927]
[1642334447761,1.96077588,148.22,148.13,70.15985927]
[1642334449592,12.08457588,148.22,148.13,70.15985927]
[1642334449964,23.97,148.21,148.13,70.15985927]
[1642334451763,34.0944,148.21,148.13,46.91015927]
[1642334451963,0.26,148.2,148.13,46.91015927]
[1642334452163,0.26,148.2,148.13,6.04]
[1642334452365,1.96077588,148.2,148.13,0.04]
[1642334453566,12.08597588,148.2,148.13,0.04]
[1642334469817,11.82597588,148.2,148.13,0.04]
[1642334473420,10.1262,148.18,148.13,0.04]
[1642334473620,6.52614624,148.17,148.13,0.04]
[1642334474322,29.92074624,148.17,148.13,0.04]
[1642334474722,40.04774624,148.17,148.13,0.04]
[1642334474925,41.74852212,148.17,148.13,0.04]
[1642334476925,0.26,148.16,148.13,0.04]
[1642334477126,10.1296,148.15,148.13,0.04]
[1642334477327,11.83037588,148.15,148.13,0.04]
[1642334478329,44.70077588,148.14,148.13,0.04]
[1642334478929,67.32677588,148.14,148.13,0.04]
[1642334480429,24.32677588,148.14,148.13,0.04]
[1642334483860,24.58677588,148.14,148.13,0.04]
[1642334484061,22.886,148.14,148.13,0.04]
[1642334488067,24.58677588,148.14,148.13,0.04]
[1642334489368,24.32677588,148.14,148.13,0.04]
[1642334491170,22.626,148.14,148.13,0.04]
[1642334491970,22.886,148.14,148.13,0.04]
[1642334494174,24.58677588,148.14,148.13,0.04]
[1642334494877,22.886,148.14,148.13,0.04]
[1642334496185,24.58677588,148.14,148.13,0.04]
[1642334500883,24.32677588,148.14,148.13,0.04]
[1642334502182,22.626,148.14,148.13,0.04]
[1642334504583,22.886,148.14,148.13,0.04]
[1642334509886,22.626,148.14,148.13,0.04]
[1642334510086,1.70077588,148.17,148.13,0.04]
[1642334510287,38.00335359,148.18,148.13,0.04]
[1642334510689,52.10558863,148.18,148.13,0.04]
[1642334510991,9.94258209,148.17,148.13,0.04]
[1642334511189,20.06968209,148.17,148.13,0.04]
[1642334511392,1.70077588,148.16,148.13,0.04]
[1642334512388,10.1284,148.15,148.13,0.04]
[1642334512790,1.70077588,148.14,148.13,0.04]
[1642334513498,24.30997588,148.14,148.13,0.04]
[1642334513694,24.56997588,148.14,148.13,0.04]
[1642334525132,10.1284,148.15,148.13,0.04]
[1642334526535,11.97259524,148.15,148.14,3.03219997]
[1642334526936,11.97259524,148.15,148.13,0.04]
[1642334528637,0.26,148.14,148.13,0.04]
[1642334529438,2.10419524,148.14,148.13,0.04]
[1642334530342,0.26,148.14,148.13,0.04]
[1642334530540,1.84419524,148.15,148.13,0.04]
[1642334531641,1.84419524,148.16,148.14,42.97440182]
[1642334531844,1.84419524,148.16,148.14,39.94220185]
[1642334532844,0.26,148.15,148.14,39.94220185]
[1642334533443,1.84419524,148.16,148.14,39.94220185]
[1642334533642,1.84419524,148.16,148.14,46.14220185]
[1642334533845,1.84419524,148.16,148.14,46.39220185]
[1642334534042,9.524e-05,148.17,148.15,44.03219997]
[1642334534246,9.524e-05,148.17,148.16,40.03219997]
[1642334535044,3.57765359,148.2,148.16,40.03219997]
[1642334535243,484.65393733,148.26,148.16,40.03219997]
[1642334535244,3.57765359,148.24,148.16,40.03219997]
[1642334535445,3.57765359,148.24,148.16,69.24269997]
[1642334536043,3.57765359,148.24,148.16,69.49269997]
[1642334536547,3.57765359,148.24,148.16,63.49269997]
[1642334536746,0.26,148.23,148.16,63.49269997]
[1642334536945,3.57765359,148.24,148.16,63.49269997]
[1642334537149,5.27842947,148.26,148.16,63.49269997]
[1642334537347,5.27842947,148.26,148.17,0.26]
[1642334537547,5.27842947,148.26,148.17,7.154]
[1642334537747,5.27842947,148.26,148.17,7.404]
[1642334538146,1.70077588,148.26,148.17,7.404]
[1642334538347,0.26,148.25,148.18,23.2742]
[1642334544090,0.26,148.25,148.18,23.5242]
[1642334545184,0.26,148.25,148.18,23.2742]
[1642334547685,1.75486688,148.26,148.18,23.2742]
[1642334550492,1.75486688,148.26,148.15,49.53191938]
[1642334551091,0.26,148.25,148.15,49.53191938]
[1642334551292,10.1229,148.23,148.11,23.55]
[1642334551592,24.6575,148.22,148.11,23.55]
[1642334551792,26.35827588,148.22,148.11,23.55]
[1642334551992,1.70077588,148.21,148.11,23.55]
[1642334552190,2.29861719,148.21,148.12,45.74209661]
[1642334552393,12.42311719,148.21,148.12,45.74209661]
[1642334552691,1.70077588,148.2,148.12,45.74209661]
[1642334553491,1.70077588,148.2,148.15,0.02]
[1642334554592,11.82617588,148.2,148.15,0.02]
[1642334555494,10.3857,148.19,148.15,0.02]
[1642334558596,1.70077588,148.18,148.15,0.02]
[1642334558895,10.1257,148.19,148.15,0.02]
[1642334562301,11.82647588,148.19,148.15,0.02]
[1642334562503,0.26,148.18,148.15,0.02]
[1642334569642,0.26,148.18,148.16,3.03219997]
[1642334569810,0.26,148.18,148.15,0.02]
[1642334570909,0.98717114,148.18,148.15,0.02]
[1642334571108,0.26,148.18,148.15,0.02]
[1642334580647,10.3864,148.18,148.15,0.02]
[1642334582148,10.1264,148.18,148.15,0.02]
[1642334582350,23.194,148.2,148.15,0.02]
[1642334582551,10.1251,148.2,148.15,0.02]
[1642334583252,32.8021,148.2,148.15,0.02]
[1642334585851,0.26,148.19,148.15,0.02]
[1642334595266,10.3858,148.19,148.15,0.02]
[1642334595466,1.70077588,148.18,148.15,0.02]
[1642334595666,25.64537588,148.18,148.15,0.02]
[1642334595897,0.26,148.17,148.15,0.02]
[1642334596065,1.96077588,148.17,148.15,0.02]
[1642334596366,1.33643025,148.16,148.15,0.02]
[1642334596966,1.96077588,148.17,148.15,0.02]
[1642334597167,1.70077588,148.17,148.15,0.02]
[1642334597366,23.9446,148.18,148.15,0.02]
[1642334597570,23.9446,148.18,148.16,6.06439994]
[1642334597769,13.70355359,148.19,148.16,6.06439994]
[1642334598171,5.27842947,148.2,148.16,6.06439994]
[1642334598368,3.57765359,148.2,148.16,6.06439994]
[1642334599370,13.70225359,148.21,148.16,6.06439994]
[1642334599969,3.57765359,148.21,148.16,6.06439994]
[1642334600771,3.57765359,148.21,148.16,6.31439994]
[1642334601274,3.57765359,148.24,148.16,6.31439994]
[1642334601474,3.57765359,148.24,148.16,29.41239994]
[1642334602376,0.054091,148.26,148.16,29.41239994]
[1642334602575,24.939291,148.26,148.16,29.41239994]
[1642334602977,0.26,148.25,148.16,29.41239994]
[1642334604801,0.26,148.25,148.16,29.43239994]
[1642334605202,24.939291,148.26,148.16,29.43239994]
[1642334607405,0.26,148.25,148.16,29.43239994]
[1642334608408,0.26,148.25,148.16,29.18239994]
[1642334609108,1.78368598,148.25,148.16,29.18239994]
[1642334609516,0.26,148.25,148.16,29.18239994]
[1642334610411,0.26,148.25,148.16,29.43239994]
[1642334613917,0.26,148.25,148.16,29.18239994]
[1642334615521,0.26,148.25,148.16,29.43239994]
[1642334618825,2.27658534,148.25,148.16,29.43239994]
[1642334619026,0.26,148.25,148.16,29.43239994]
[1642334630468,28.51694459,148.26,148.16,29.43239994]
[1642334630867,28.51694459,148.26,148.16,35.43239994]
[1642334631668,24.939291,148.26,148.16,35.43239994]
[1642334633972,2.30770226,148.25,148.16,35.43239994]
[1642334634174,2.56770226,148.25,148.16,35.43239994]
[1642334635075,0.26,148.25,148.16,35.43239994]
[1642334636376,24.939291,148.26,148.16,35.43239994]
[1642334636777,24.939291,148.26,148.16,35.18239994]
[1642334637877,0.26,148.25,148.16,35.18239994]
[1642334638081,0.26,148.25,148.16,35.43239994]
[1642334640382,0.26,148.25,148.16,29.43239994]
[1642334640781,28.51694459,148.26,148.16,29.43239994]
[1642334641014,28.51694459,148.26,148.17,0.26]
[1642334641208,24.939291,148.26,148.17,0.26]
[1642334642208,0.26,148.25,148.17,0.26]
[1642334652417,0.054091,148.26,148.17,67.74]
[1642334652619,0.054091,148.26,148.19,67.48]
[1642334652818,0.054091,148.26,148.2,23.3585]
[1642334653117,0.054091,148.26,148.2,90.8385]
[1642334653317,0.054091,148.26,148.2,29.6085]
[1642334653520,0.054091,148.26,148.21,47.27262401]
[1642334653920,0.054091,148.26,148.22,23.6414]
[1642334654321,0.054091,148.26,148.22,29.8914]
[1642334654721,0.054091,148.26,148.22,29.6314]
[1642334657325,0.054091,148.26,148.22,23.6314]
[1642334671674,0.054091,148.26,148.23,0.26]
[1642334671875,0.054091,148.26,148.24,6.06439994]
[1642334676177,0.054091,148.26,148.24,6.31439994]
[1642334676480,0.054091,148.26,148.24,6.06439994]
[1642334681084,0.054091,148.26,148.24,6.31439994]
[1642334681285,0.054091,148.26,148.24,6.06439994]
[1642334682786,0.054091,148.26,148.25,64.26]
[1642334683190,0.054091,148.26,148.25,70.51]
[1642334683389,0.004091,148.26,148.25,70.51]
[1642334683588,3.57765359,148.32,148.26,51.0]
[1642334683789,3.57765359,148.32,148.26,89.13961575]
[1642334683991,3.57765359,148.32,148.27,0.26]
[1642334684190,3.57765359,148.35,148.27,0.26]
[1642334684392,3.57765359,148.35,148.27,24.8975]
[1642334684796,3.57765359,148.35,148.27,31.1475]
[1642334685191,3.57765359,148.37,148.27,31.1475]
[1642334685389,23.7217,148.36,148.27,31.1475]
[1642334686396,0.26,148.35,148.27,31.1475]
[1642334687894,23.7217,148.36,148.27,31.1475]
[1642334689294,0.26,148.35,148.27,31.1475]
[1642334689894,23.7217,148.36,148.27,31.1475]
[1642334691196,23.7217,148.36,148.27,25.1475]
[1642334691797,23.7217,148.36,148.27,24.8875]
[1642334691999,0.26,148.35,148.27,24.8875]
[1642334693299,23.7217,148.36,148.28,0.26]
[1642334694536,0.26,148.35,148.28,0.26]
[1642334695334,23.7217,148.36,148.28,0.26]
[1642334699536,6.1005855,148.39,148.28,0.26]
[1642334699740,23.3612,148.39,148.28,0.26]
[1642334700238,23.3612,148.39,148.28,1.47641251]
[1642334700439,23.3612,148.39,148.28,75.20641251]
[1642334700838,31.77897251,148.39,148.28,75.20641251]
[1642334701038,31.77897251,148.39,148.29,23.523]
[1642334701438,31.77897251,148.39,148.3,0.26]
[1642334701639,23.3612,148.39,148.3,0.26]
[1642334706545,23.3612,148.39,148.31,36.59813099]
[1642334706744,23.3612,148.39,148.32,24.2553]
[1642334706947,23.3612,148.39,148.32,24.5153]
[1642334707848,23.3612,148.39,148.32,24.7653]
[1642334708864,23.3612,148.39,148.32,24.5153]
[1642334709364,23.3612,148.39,148.32,24.7653]
[1642334710168,3.57765359,148.43,148.33,67.48]
[1642334710368,3.57765359,148.43,148.34,0.26]
[1642334710565,3.57765359,148.43,148.34,8.399]
[1642334710766,3.57765359,148.43,148.36,50.12028797]
[1642334711067,3.57765359,148.43,148.36,50.37028797]
[1642334711267,3.57765359,148.43,148.37,0.26]
[1642334711468,3.57765359,148.43,148.37,8.989]
[1642334711668,3.57765359,148.43,148.37,32.639]
[1642334711967,24.525,148.45,148.37,32.639]
[1642334713790,0.26,148.44,148.37,8.729]
[1642334716295,0.26,148.44,148.37,8.979]
[1642334716496,0.26,148.44,148.37,31.7046]
[1642334716899,0.26,148.44,148.38,0.26]
[1642334717299,24.525,148.45,148.38,0.26]
[1642334717504,24.525,148.45,148.38,67.74]
[1642334717902,24.525,148.45,148.38,73.99]
[1642334718304,3.57765359,148.48,148.38,73.99]
[1642334718508,24.7749,148.47,148.39,23.8553]
[1642334718904,24.7749,148.47,148.4,0.26]
[1642334720009,24.7749,148.47,148.4,6.902]
[1642334720207,3.57765359,148.51,148.4,6.902]
[1642334720406,3.57765359,148.51,148.41,23.3687]
[1642334720609,5.99262968,148.5,148.42,43.26203913]
[1642334721008,0.26,148.49,148.42,43.26203913]
[1642334721207,0.26,148.49,148.42,43.33203913]
[1642334724145,0.26,148.49,148.42,46.41635909]
[1642334724346,8.12862802,148.51,148.42,46.41635909]
[1642334724547,0.26,148.5,148.42,46.41635909]
[1642334724945,24.9138,148.5,148.42,46.41635909]
[1642334725749,24.9138,148.5,148.42,0.07]
[1642334726348,26.61457588,148.5,148.42,0.07]
[1642334728552,24.9138,148.5,148.42,0.07]
[1642334730251,35.0185,148.5,148.42,0.07]
[1642334730653,23.1951,148.49,148.42,0.07]
[1642334731457,24.7902,148.48,148.42,0.07]